bitfinex/quotes_ETHUSD_20230110
["timestamp","ask_amount","ask_price","bid_price","bid_amount"]
[1673318605885,0.00502684,1319.3,1319.2,2.5]
[1673318605886,8.21e-06,1319.3,1319.2,2.5]
[1673318606088,8.21e-06,1319.3,1319.2,34.77671064]
[1673318606245,8.21e-06,1319.3,1319.2,38.46338443]
[1673318606676,8.21e-06,1319.3,1319.2,53.03208443]
[1673318607128,8.21e-06,1319.3,1319.2,52.46338443]
[1673318607319,8.21e-06,1319.3,1319.2,48.46338443]
[1673318607544,8.21e-06,1319.3,1319.2,49.46338443]
[1673318607949,8.21e-06,1319.3,1319.2,38.46338443]
[1673318608203,8.21e-06,1319.3,1319.2,35.72538443]
[1673318608359,8.21e-06,1319.3,1319.2,33.22538443]
[1673318615438,8.21e-06,1319.3,1319.2,34.59338443]
[1673318615658,0.41918491,1319.3,1319.2,34.59338443]
[1673318617833,0.01273105,1319.5,1319.2,35.96438443]
[1673318618107,0.01273105,1319.5,1319.4,2.753]
[1673318618259,0.01273105,1319.5,1319.4,42.12385564]
[1673318618468,1.05e-06,1319.5,1319.4,42.18985564]
[1673318620203,4.37e-06,1319.6,1319.4,43.55485564]
[1673318620514,4.37e-06,1319.6,1319.5,46.28252064]
[1673318620686,4.37e-06,1319.6,1319.5,46.34852064]
[1673318620905,4.37e-06,1319.6,1319.5,49.08043914]
[1673318623878,4.37e-06,1319.6,1319.5,82.08043914]
[1673318625136,4.37e-06,1319.6,1319.5,74.08043914]
[1673318625355,4.37e-06,1319.6,1319.5,82.08043914]
[1673318625525,0.0070939,1319.7,1319.6,23.96614563]
[1673318625882,0.0070939,1319.7,1319.6,34.8337462]
[1673318628189,0.0070939,1319.7,1319.6,33.4557462]
[1673318629905,0.0070939,1319.7,1319.6,32.0777462]
[1673318630066,0.0070939,1319.7,1319.6,27.05008556]
[1673318630289,0.0070939,1319.7,1319.6,25.80214563]
[1673318630481,0.0070939,1319.7,1319.6,39.80214563]
[1673318630953,1.2370939,1319.7,1319.6,25.80214563]
[1673318631163,1.2370939,1319.7,1319.6,3.06799563]
[1673318631359,1.2370939,1319.7,1319.6,0.00199563]
[1673318631785,1.8055939,1319.7,1319.6,0.00199563]
[1673318631956,3.18251965,1319.7,1319.6,0.00199563]
[1673318632166,10.75998965,1319.7,1319.6,0.00199563]
[1673318632430,17.21872362,1319.7,1319.6,0.00199563]
[1673318633689,29.59592362,1319.7,1319.6,0.00199563]
[1673318634263,27.09592362,1319.7,1319.6,0.00199563]
[1673318635316,34.67339362,1319.7,1319.6,0.00199563]
[1673318636205,43.62886362,1319.7,1319.6,0.00199563]
[1673318636476,44.75368097,1319.7,1319.6,0.00199563]
[1673318636952,46.4290701,1319.7,1319.6,0.00199563]
[1673318637192,53.72673074,1319.7,1319.6,0.00199563]
[1673318637465,52.60191339,1319.7,1319.6,0.00199563]
[1673318637694,50.2223875,1319.7,1319.6,0.00199563]
[1673318638099,49.10191339,1319.7,1319.6,0.00199563]
[1673318638306,50.22338004,1319.7,1319.6,0.00199563]
[1673318638942,49.10191339,1319.7,1319.6,0.00199563]
[1673318639361,51.34084345,1319.7,1319.6,0.00199563]
[1673318639901,49.10191339,1319.7,1319.6,0.00199563]
[1673318640282,49.66545432,1319.7,1319.6,0.00199563]
[1673318641161,51.34917333,1319.7,1319.6,0.00199563]
[1673318641335,49.66545432,1319.7,1319.6,0.00199563]
[1673318641544,51.43545432,1319.7,1319.6,0.00199563]
[1673318642123,53.1193418,1319.7,1319.6,0.00199563]
[1673318642313,51.43545432,1319.7,1319.6,0.00199563]
[1673318643458,53.12014699,1319.7,1319.6,0.00199563]
[1673318643667,51.43545432,1319.7,1319.6,0.00199563]
[1673318644682,54.23411689,1319.7,1319.6,0.00199563]
[1673318644845,54.24240216,1319.7,1319.6,0.00199563]
[1673318648719,15.1584367,1319.6,1319.2,22.80681]
[1673318648935,10.08051905,1319.5,1319.2,2.346681]
[1673318649145,10.08051905,1319.5,1319.1,7.5808]
[1673318649146,26.98954263,1319.5,1319.1,0.066]
[1673318649411,26.98954263,1319.5,1319.0,25.63116408]
[1673318649565,26.98954263,1319.5,1319.1,6.0]
[1673318649770,33.99420327,1319.5,1319.1,6.066]
[1673318650024,1.378,1319.3,1319.1,6.066]
[1673318650244,1.378,1319.3,1319.1,0.066]
[1673318650413,16.53772,1319.3,1319.0,0.066]
[1673318650626,9.02386,1319.3,1319.1,6.0]
[1673318650868,9.02386,1319.3,1319.1,6.066]
[1673318651713,9.02386,1319.3,1319.1,0.066]
[1673318651902,12.24786,1319.3,1319.0,7.64741]
[1673318652252,12.24786,1319.3,1319.0,3.4543457]
[1673318652441,12.24786,1319.3,1319.0,3.3883457]
[1673318652619,9.02386,1319.3,1319.0,10.9697857]
[1673318652829,9.02386,1319.3,1319.0,11.0357857]
[1673318653704,1.444,1319.3,1319.0,18.6172857]
[1673318653887,1.444,1319.3,1319.0,26.1987857]
[1673318653888,1.378,1319.3,1319.0,26.1987857]
[1673318654838,1.378,1319.3,1319.0,29.02029374]
[1673318655059,22.0214,1319.4,1319.0,29.02029374]
[1673318655242,22.0214,1319.4,1319.2,7.58035]
[1673318655447,22.0214,1319.4,1319.2,7.64635]
[1673318655662,22.0214,1319.4,1319.2,10.177125]
[1673318655901,22.0214,1319.4,1319.2,2.596775]
[1673318656236,20.6974,1319.4,1319.2,10.111115]
[1673318656409,20.6974,1319.4,1319.2,10.177115]
[1673318656967,12.0905,1319.4,1319.2,25.337615]
[1673318657180,12.0905,1319.4,1319.3,2.5]
[1673318657395,12.0905,1319.4,1319.3,28.0230715]
[1673318657605,12.0905,1319.4,1319.3,28.0890715]
[1673318657765,0.116,1319.4,1319.3,28.0890715]
[1673318657971,0.05,1319.4,1319.3,28.0890715]
[1673318658238,9.83610575,1319.6,1319.3,28.0890715]
[1673318658399,8.7123367,1319.6,1319.3,28.0890715]
[1673318658817,8.7123367,1319.6,1319.3,25.5890715]
[1673318659506,0.0677367,1319.6,1319.4,3.79766064]
[1673318659659,0.0017367,1319.6,1319.5,30.31448]
[1673318659865,0.0017367,1319.6,1319.5,34.75448]
[1673318664608,0.0017367,1319.6,1319.5,33.38048]
[1673318665450,0.0017367,1319.6,1319.5,0.066]
[1673318665451,1.2317367,1319.6,1319.5,0.066]
[1673318665642,1.2317367,1319.6,1319.4,3.0]
[1673318665853,4.82020671,1319.6,1319.3,15.22502]
[1673318666064,4.82913246,1319.6,1319.3,15.22502]
[1673318666314,14.09312604,1319.6,1319.3,0.066]
[1673318666503,12.62147246,1319.6,1319.3,7.57972]
[1673318666742,5.04313246,1319.6,1319.3,7.64572]
[1673318667241,15.12122246,1319.6,1319.3,7.64572]
[1673318667752,16.80687604,1319.6,1319.3,7.64572]
[1673318668197,24.38496604,1319.6,1319.3,0.066]
[1673318668408,4.18742263,1319.5,1319.2,8.1422]
[1673318668628,30.48272977,1319.5,1319.2,0.066]
[1673318668852,30.54872977,1319.5,1319.1,15.22725]
[1673318669140,22.96979977,1319.5,1319.2,7.58033]
[1673318669373,30.54872977,1319.5,1319.2,0.066]
[1673318669685,9.52585,1319.4,1319.1,15.16155]
[1673318669898,12.70361498,1319.4,1319.1,22.8084]
[1673318670492,5.12436498,1319.4,1319.1,22.8084]
[1673318671045,6.24813403,1319.4,1319.1,22.8084]
[1673318671231,13.82741403,1319.4,1319.1,7.6467]
[1673318671442,13.25881403,1319.4,1319.1,7.6467]
[1673318671688,5.67953403,1319.4,1319.1,15.22762]
[1673318672430,2.56776905,1319.4,1319.1,15.22762]
[1673318672602,2.50176905,1319.4,1319.1,15.22762]
[1673318673010,10.08101905,1319.4,1319.1,7.6467]
[1673318673229,9.02325,1319.4,1319.1,7.6467]
[1673318673436,0.066,1319.4,1319.1,22.80646199]
[1673318673640,4.75602263,1319.5,1319.1,26.24079374]
[1673318673854,1.69236905,1319.5,1319.1,26.24079374]
[1673318674060,1.69236905,1319.5,1319.3,7.57977]
[1673318674326,1.69236905,1319.5,1319.3,7.64577]
[1673318674654,14.22125933,1319.6,1319.3,24.577895]
[1673318675024,14.22125933,1319.6,1319.4,2.5]
[1673318675397,0.0677367,1319.6,1319.5,15.15724]
[1673318675549,0.0017367,1319.6,1319.5,15.22324]
[1673318677068,0.0017367,1319.6,1319.5,7.64462]
[1673318677256,0.0017367,1319.6,1319.5,9.416953]
[1673318678380,0.0017367,1319.6,1319.5,16.995573]
[1673318678591,1.13086295,1319.7,1319.5,24.574193]
[1673318678852,1.13086295,1319.7,1319.5,16.995573]
[1673318679449,1.13086295,1319.7,1319.5,24.574193]
[1673318680009,1.13086295,1319.7,1319.5,16.995573]
[1673318680171,1.13086295,1319.7,1319.5,24.574193]
[1673318682162,0.0070939,1319.7,1319.5,24.574193]
[1673318682692,0.0070939,1319.7,1319.5,28.37185364]
[1673318683629,0.0070939,1319.7,1319.6,25.23415]
[1673318683840,0.0070939,1319.7,1319.6,2.566]
[1673318684068,1.13086295,1319.7,1319.5,0.066]
[1673318684278,1.13086295,1319.7,1319.4,0.066]
[1673318684524,1.13086295,1319.7,1319.4,25.7374]
[1673318684745,2.81651653,1319.7,1319.4,25.8034]
[1673318684901,2.81651653,1319.7,1319.4,21.8774345]
[1673318688408,1.12376905,1319.6,1319.4,21.8774345]
[1673318688589,5.31651653,1319.7,1319.4,29.4566345]
[1673318688801,2.88251653,1319.7,1319.4,29.4566345]
[1673318689005,6.20051653,1319.7,1319.4,29.4566345]
[1673318689213,6.26651653,1319.7,1319.4,29.4566345]
[1673318689857,6.26651653,1319.7,1319.4,21.8774345]
[1673318690298,6.26651653,1319.7,1319.4,10.645]
[1673318690299,1.12376905,1319.6,1319.4,10.645]
[1673318690519,1.12376905,1319.6,1319.4,7.64504]
[1673318690741,1.12376905,1319.6,1319.4,0.066]
[1673318690957,1.12376905,1319.6,1319.3,24.576775]
[1673318691172,1.12376905,1319.6,1319.3,24.577025]
[1673318691330,1.12376905,1319.6,1319.3,16.997255]
[1673318692018,1.12376905,1319.6,1319.3,24.577025]
[1673318692482,1.12376905,1319.6,1319.3,16.997255]
[1673318693321,1.12376905,1319.6,1319.3,24.577025]
[1673318693573,1.12376905,1319.6,1319.3,16.997255]
[1673318694189,2.80942263,1319.6,1319.3,24.577025]
[1673318694395,2.80942263,1319.6,1319.3,24.57415031]
[1673318694798,2.80942263,1319.6,1319.3,16.99438031]
[1673318695009,2.80942263,1319.6,1319.3,24.57415031]
[1673318695443,1.12376905,1319.6,1319.3,24.57415031]
[1673318697259,0.05,1319.4,1319.3,24.57415031]
[1673318697438,1.12376905,1319.6,1319.3,26.45483555]
[1673318697654,1.12376905,1319.6,1319.3,24.57415031]
[1673318698476,1.12376905,1319.6,1319.3,27.39514168]
[1673318698690,11.71631653,1319.7,1319.3,27.39514168]
[1673318698897,11.71631653,1319.7,1319.3,32.02931078]
[1673318699108,1.19686295,1319.7,1319.4,12.17818014]
[1673318699398,0.0070939,1319.7,1319.4,29.94890973]
[1673318699593,0.0070939,1319.7,1319.5,22.73586]
[1673318699738,0.0070939,1319.7,1319.6,2.5]
[1673318699944,0.0070939,1319.7,1319.6,25.23415]
[1673318700318,0.0070939,1319.7,1319.6,25.30015]
[1673318700479,0.0070939,1319.7,1319.6,28.87006505]
[1673318701947,0.0070939,1319.7,1319.6,30.24806505]
[1673318702277,0.0070939,1319.7,1319.6,44.24806505]
[1673318702480,0.0070939,1319.7,1319.6,47.24806505]
[1673318703325,0.0070939,1319.7,1319.6,43.37006505]
[1673318703996,0.0070939,1319.7,1319.6,29.37006505]
[1673318705776,0.0070939,1319.7,1319.6,3.066]
[1673318705994,1.13086295,1319.7,1319.6,3.0]
[1673318706512,1.13286295,1319.7,1319.6,3.0]
[1673318706687,1.13086295,1319.7,1319.6,3.0]
[1673318706882,1.13086295,1319.7,1319.5,0.066]
[1673318707092,1.13086295,1319.7,1319.5,3.0]
[1673318707302,1.13086295,1319.7,1319.5,10.57859]
[1673318707563,1.13086295,1319.7,1319.5,10.64459]
[1673318707775,1.13086295,1319.7,1319.5,18.22321]
[1673318709623,0.05,1319.6,1319.5,10.64459]
[1673318710367,0.05,1319.6,1319.5,3.066]
[1673318710586,0.05,1319.6,1319.5,10.57862]
[1673318710770,0.05,1319.6,1319.5,10.64462]
[1673318711189,0.05,1319.6,1319.5,3.066]
[1673318711455,0.05,1319.6,1319.5,3.0]
[1673318712294,5.07766064,1319.6,1319.2,15.05705491]
[1673318712506,7.17568327,1319.5,1319.2,0.066]
[1673318712721,32.34468327,1319.4,1319.0,1.20101046]
[1673318712913,2.28035359,1319.3,1319.1,1.88097392]
[1673318713122,2.28035359,1319.3,1318.9,1.39401261]
[1673318713123,1.12376905,1319.2,1318.9,1.39401261]
[1673318713332,1.12376905,1319.2,1318.9,0.19300215]
[1673318713593,2.86103542,1319.2,1318.9,2.69300215]
[1673318713766,2.16325482,1319.2,1318.9,2.69300215]
[1673318714316,8.00639845,1319.2,1318.9,0.19300215]
[1673318714528,8.07239845,1319.2,1318.9,0.19300215]
[1673318715065,15.65280845,1319.2,1318.9,0.19300215]
[1673318715857,0.05,1319.0,1318.9,0.19300215]
[1673318716743,0.05,1319.0,1318.9,1.42300215]
[1673318717596,32.01921845,1319.2,1318.9,1.42300215]
[1673318717804,36.70291978,1319.2,1318.9,1.42300215]
[1673318718017,32.01921845,1319.2,1318.9,15.42300215]
[1673318718233,0.49198845,1319.2,1318.9,49.69013338]
[1673318718550,0.49198845,1319.2,1319.0,5.5]
[1673318718551,0.42598845,1319.2,1319.0,5.5]
[1673318718856,0.02600001,1319.3,1319.0,26.72803234]
[1673318719687,7.60590001,1319.3,1319.0,6.06570234]
[1673318719860,7.60590001,1319.3,1319.0,0.066]
[1673318719861,22.83157001,1319.3,1319.0,0.066]
[1673318720206,22.83157001,1319.3,1318.9,0.25900215]
[1673318720433,22.83157001,1319.3,1318.9,3.19300215]
[1673318720607,33.72167001,1319.3,1318.9,3.19300215]
[1673318720821,51.41688388,1319.3,1318.9,0.19300215]
[1673318721131,7.58092,1319.1,1318.9,0.19300215]
[1673318721383,8.21572,1319.1,1318.9,0.19300215]
[1673318721714,7.64692,1319.1,1318.9,0.19300215]
[1673318723128,0.066,1319.1,1318.9,7.77497215]
[1673318723345,12.4115,1319.2,1318.9,15.42304215]
[1673318723672,11.8428,1319.2,1318.9,25.57494458]
[1673318724108,11.8428,1319.2,1319.0,2.5]
[1673318724325,0.066,1319.2,1319.1,22.74276]
[1673318724536,9.04140001,1319.3,1319.1,22.80876]
[1673318724917,0.09200001,1319.3,1319.1,22.80876]
[1673318725116,0.09200001,1319.3,1319.1,25.339636]
[1673318725117,0.02600001,1319.3,1319.1,25.339636]
[1673318725323,0.02600001,1319.3,1319.2,2.0]
[1673318725566,0.02600001,1319.3,1319.2,17.1607]
[1673318725804,0.02600001,1319.3,1319.2,17.2267]
[1673318726372,0.02600001,1319.3,1319.2,9.64635]
[1673318726577,0.02600001,1319.3,1319.2,19.9606066]
[1673318726842,0.02600001,1319.3,1319.2,12.3802566]
[1673318727368,0.02600001,1319.3,1319.2,10.3802566]
[1673318727544,0.02600001,1319.3,1319.2,17.9606066]
[1673318727756,0.02600001,1319.3,1319.2,10.3802566]
[1673318728201,0.02600001,1319.3,1319.2,17.9606066]
[1673318728682,0.02600001,1319.3,1319.2,25.5409566]
[1673318728892,0.02600001,1319.3,1319.2,17.9606066]
[1673318729311,0.02600001,1319.3,1319.2,25.5409566]
[1673318729787,0.02600001,1319.3,1319.2,17.9606066]
[1673318729942,0.02600001,1319.3,1319.2,10.3802566]
[1673318730153,0.02600001,1319.3,1319.2,2.7999066]
[1673318730412,0.02600001,1319.3,1319.2,20.3946066]
[1673318730622,0.02600001,1319.3,1319.2,17.9606066]
[1673318730832,0.02600001,1319.3,1319.2,25.5409566]
[1673318731254,0.02600001,1319.3,1319.2,43.33861724]
[1673318731898,0.02600001,1319.3,1319.2,46.33861724]
[1673318732982,0.02600001,1319.3,1319.2,73.33861724]
[1673318733407,0.02600001,1319.3,1319.2,76.33861724]
[1673318733846,0.65477809,1319.3,1319.2,76.33861724]
[1673318734515,0.65477809,1319.3,1319.2,63.33861724]
[1673318735249,0.65477809,1319.3,1319.2,77.33861724]
[1673318739243,0.65477809,1319.3,1319.2,70.33861724]
[1673318739565,0.65477809,1319.3,1319.2,87.1088583]
[1673318739757,0.0730939,1319.7,1319.4,2.5]
[1673318739927,0.0070939,1319.7,1319.6,14.0]
[1673318740291,0.0070939,1319.7,1319.6,43.59781064]
[1673318741726,0.0070939,1319.7,1319.6,47.09781064]
[1673318741937,0.0070939,1319.7,1319.6,33.09781064]
[1673318742152,0.0070939,1319.7,1319.6,37.3732218]
[1673318743206,0.0070939,1319.7,1319.6,51.3732218]
[1673318743619,0.0070939,1319.7,1319.6,66.3732218]
[1673318744067,0.0070939,1319.7,1319.6,85.3732218]
[1673318744447,0.0070939,1319.7,1319.6,88.3732218]
[1673318744712,0.03407906,1319.9,1319.8,1.2370939]
[1673318744882,0.03407906,1319.9,1319.8,56.39216393]
[1673318745100,0.03407906,1319.9,1319.8,59.45816393]
[1673318745288,0.03407906,1319.9,1319.8,82.45816393]
[1673318746075,0.03407906,1319.9,1319.8,80.45816393]
[1673318746603,0.03407906,1319.9,1319.8,81.45816393]
[1673318746822,0.03407906,1319.9,1319.8,77.95816393]
[1673318747000,0.03407906,1319.9,1319.8,90.95816393]
[1673318747212,0.03407906,1319.9,1319.8,89.58316393]
[1673318747760,0.03407906,1319.9,1319.8,83.58316393]
[1673318748390,0.03407906,1319.9,1319.8,87.08316393]
[1673318749175,0.03407906,1319.9,1319.8,79.08316393]
[1673318749385,0.03407906,1319.9,1319.8,87.08316393]
[1673318749856,0.03407906,1319.9,1319.8,83.58316393]
[1673318750247,0.03407906,1319.9,1319.8,82.20516393]
[1673318751806,0.03407906,1319.9,1319.8,85.70516393]
[1673318752045,0.03407906,1319.9,1319.8,82.20516393]
[1673318752591,0.03132259,1319.9,1319.8,85.70516393]
[1673318752803,0.03132259,1319.9,1319.8,82.20516393]
[1673318753011,0.03132259,1319.9,1319.8,85.70516393]
[1673318753224,0.03132259,1319.9,1319.8,82.20516393]
[1673318754330,0.03132259,1319.9,1319.8,72.97516393]
[1673318754687,0.03132259,1319.9,1319.8,41.02455454]
[1673318754909,0.03132259,1319.9,1319.8,33.44765454]
[1673318755312,0.03132259,1319.9,1319.8,41.02455454]
[1673318756218,0.03132259,1319.9,1319.8,48.60145454]
[1673318757079,0.03132259,1319.9,1319.8,61.60145454]
[1673318757315,0.03132259,1319.9,1319.8,80.86623714]
[1673318757524,2.59e-06,1319.9,1319.8,80.86623714]
[1673318757845,2.59e-06,1319.9,1319.8,88.44313714]
[1673318760155,2.59e-06,1319.9,1319.8,74.44313714]
[1673318760367,2.59e-06,1319.9,1319.8,88.44313714]
[1673318761015,2.59e-06,1319.9,1319.8,74.44313714]
[1673318761370,2.59e-06,1319.9,1319.8,59.86623714]
[1673318762765,2.59e-06,1319.9,1319.8,73.86623714]
[1673318763811,2.59e-06,1319.9,1319.8,59.86623714]
[1673318764323,2.59e-06,1319.9,1319.8,54.60145454]
[1673318764538,2.59e-06,1319.9,1319.8,50.8037939]
[1673318765416,2.59e-06,1319.9,1319.8,54.60145454]
[1673318766436,2.59e-06,1319.9,1319.8,68.60145454]
[1673318767728,0.74318486,1320.0,1319.9,0.00199741]
[1673318767890,0.74318486,1320.0,1319.9,30.39864805]
[1673318768100,0.74318486,1320.0,1319.9,38.00328356]
[1673318768459,0.74318486,1320.0,1319.9,78.00328356]
[1673318769318,0.74318486,1320.0,1319.9,95.00328356]
[1673318769522,0.74318486,1320.0,1319.9,98.50328356]
[1673318769735,0.74318486,1320.0,1319.9,92.50328356]
[1673318770178,0.74318486,1320.0,1319.9,92.73328356]
[1673318771067,0.74318486,1320.0,1319.9,85.15695356]
[1673318771284,0.74318486,1320.0,1319.9,92.73328356]
[1673318775649,0.74318486,1320.0,1319.9,113.87647149]
[1673318775650,4.86e-06,1320.0,1319.9,113.87647149]
[1673318775817,0.10136378,1320.2,1320.0,0.745]
[1673318775818,0.03536378,1320.2,1320.0,0.745]
[1673318776025,0.03536378,1320.2,1320.1,51.82838064]
[1673318776225,0.03307897,1320.3,1320.1,87.4836127]
[1673318776439,0.03307897,1320.3,1320.2,3.79766064]
[1673318776646,0.04103143,1320.4,1320.2,51.62946064]
[1673318776909,0.04103143,1320.4,1320.3,4.02766064]
[1673318777173,0.04103143,1320.4,1320.3,41.74975064]
[1673318777417,0.04103143,1320.4,1320.3,47.1425857]
[1673318777603,0.04103143,1320.4,1320.3,50.1425857]
[1673318778375,0.04103143,1320.4,1320.3,64.1425857]
[1673318778962,0.04103143,1320.4,1320.3,65.1425857]
[1673318779372,12.02649851,1320.6,1320.3,76.7166157]
[1673318779583,12.02649851,1320.6,1320.4,3.79766064]
[1673318779812,0.67149851,1320.6,1320.5,34.08918064]
[1673318780041,0.67149851,1320.6,1320.5,34.15518064]
[1673318780042,0.03739851,1320.6,1320.5,34.15518064]
[1673318780447,0.03739851,1320.6,1320.5,79.38518064]
[1673318780976,0.03739851,1320.6,1320.5,92.26318064]
[1673318781443,0.78861154,1320.7,1320.6,2.5]
[1673318781742,0.78861154,1320.7,1320.6,38.49159064]
[1673318781938,0.78861154,1320.7,1320.6,38.55759064]
[1673318782121,0.78861154,1320.7,1320.6,89.55759064]
[1673318782883,1.54e-06,1320.7,1320.6,89.65649064]
[1673318783054,1.54e-06,1320.7,1320.6,91.97190766]
[1673318783746,1.54e-06,1320.7,1320.6,56.71031702]
[1673318784054,1.54e-06,1320.7,1320.6,10.066]
[1673318784423,1.54e-06,1320.7,1320.6,0.066]
[1673318784639,1.54e-06,1320.7,1320.5,19.63878]
[1673318784997,1.54e-06,1320.7,1320.6,36.0]
[1673318785207,1.54e-06,1320.7,1320.6,36.066]
[1673318785372,1.54e-06,1320.7,1320.6,35.066]
[1673318785587,1.54e-06,1320.7,1320.6,38.066]
[1673318786156,1.54e-06,1320.7,1320.6,26.066]
[1673318786381,1.54e-06,1320.7,1320.6,30.63831]
[1673318786687,1.54e-06,1320.7,1320.6,55.78293]
[1673318787841,1.54e-06,1320.7,1320.6,48.21062]
[1673318788054,1.54e-06,1320.7,1320.6,55.78293]
[1673318788593,1.54e-06,1320.7,1320.6,68.91614564]
[1673318788787,1.54e-06,1320.7,1320.6,82.91614564]
[1673318790314,0.05000154,1320.7,1320.6,82.91614564]
[1673318790503,0.04800154,1320.7,1320.6,87.78714564]
[1673318790716,24.4348,1321.2,1320.6,106.35945564]
[1673318790898,27.96544787,1321.2,1320.7,10.29766064]
[1673318791131,35.53435787,1321.2,1320.8,11.36854064]
[1673318791475,50.67217787,1321.2,1320.8,3.86366064]
[1673318791633,50.67217787,1321.2,1320.8,11.36867064]
[1673318791634,43.10326787,1321.2,1320.8,11.36867064]
[1673318791843,43.10326787,1321.2,1320.8,11.43467064]
[1673318792077,43.11219362,1321.2,1320.8,11.43467064]
[1673318792288,43.11219362,1321.2,1320.8,3.86366064]
[1673318792289,44.49019362,1321.2,1320.8,3.86366064]
[1673318792511,44.49019362,1321.2,1320.8,3.79766064]
[1673318792943,36.92128362,1321.2,1320.8,51.93969064]
[1673318793094,36.92128362,1321.2,1320.8,69.52417966]
[1673318793300,36.92128362,1321.2,1320.8,63.09533966]
[1673318793301,29.35237362,1321.2,1320.8,63.09533966]
[1673318793564,29.35237362,1321.2,1320.8,30.09533966]
[1673318794164,36.92135362,1321.2,1320.8,30.09533966]
[1673318794377,32.44637362,1321.2,1320.8,30.09533966]
[1673318794615,55.15329362,1321.2,1320.8,7.38214966]
[1673318794845,1.378,1321.1,1320.8,0.066]
[1673318795061,1.378,1321.1,1320.8,36.0]
[1673318795062,16.51729,1321.1,1320.8,36.0]
[1673318795277,16.51729,1321.1,1320.8,36.066]
[1673318795278,16.59221575,1321.1,1320.8,36.066]
[1673318795446,24.16201575,1321.1,1320.8,31.066]
[1673318795640,29.50586911,1321.1,1320.8,31.066]
[1673318795845,29.50586911,1321.1,1320.8,0.066]
[1673318796092,4.4459,1321.0,1320.8,7.57104]
[1673318796424,0.05,1320.9,1320.8,0.066]
[1673318796641,1.378,1321.0,1320.8,7.57111]
[1673318796851,1.378,1321.0,1320.8,7.63711]
[1673318797022,1.378,1321.0,1320.8,15.20827]
[1673318797236,1.378,1321.0,1320.8,0.066]
[1673318797443,1.378,1321.0,1320.8,15.14214]
[1673318797647,1.378,1321.0,1320.8,15.20814]
[1673318797900,1.378,1321.0,1320.8,7.63698]
[1673318798059,1.38692575,1321.1,1320.8,7.63698]
[1673318798422,8.95642575,1321.1,1320.8,0.066]
[1673318798742,21.17883511,1321.1,1320.7,25.78015]
[1673318798953,0.07492575,1321.1,1320.8,37.0]
[1673318799104,0.00892575,1321.1,1320.9,7.57059]
[1673318799311,0.00892575,1321.1,1320.9,22.77777]
[1673318799575,26.84344787,1321.2,1320.9,22.77777]
[1673318799794,23.3788,1321.2,1320.9,22.77777]
[1673318799942,23.3788,1321.2,1320.9,15.20718]
[1673318800157,23.3788,1321.2,1320.9,22.77777]
[1673318800624,23.3788,1321.2,1320.9,0.066]
[1673318800625,25.72424096,1321.2,1320.9,0.066]
[1673318800838,1.378,1321.0,1320.8,0.066]
[1673318800994,8.94819,1321.0,1320.7,3.0]
[1673318801208,16.58438,1321.0,1320.7,27.0]
[1673318801453,16.58438,1321.0,1320.7,27.066]
[1673318801627,26.57085958,1321.0,1320.7,27.066]
[1673318801840,26.57085958,1321.0,1320.8,22.0]
[1673318802163,3.878,1320.9,1320.8,22.066]
[1673318802476,11.44859,1320.9,1320.8,0.066]
[1673318802694,11.51459,1320.9,1320.7,32.066]
[1673318802916,11.51459,1320.9,1320.8,27.0]
[1673318803130,11.51459,1320.9,1320.8,33.066]
[1673318803883,16.58518,1320.9,1320.8,33.066]
[1673318804252,24.15577,1320.9,1320.8,33.066]
[1673318806302,16.58518,1320.9,1320.8,33.066]
[1673318806825,24.69098072,1320.9,1320.8,33.066]
[1673318807401,17.12039072,1320.9,1320.8,33.066]
[1673318807616,9.54980072,1320.9,1320.8,33.066]
[1673318808875,17.12039072,1320.9,1320.8,33.066]
[1673318809138,9.54980072,1320.9,1320.8,33.066]
[1673318809359,1.97921072,1320.9,1320.8,33.066]
[1673318809509,1.91321072,1320.9,1320.8,33.066]
[1673318809956,0.53521072,1320.9,1320.8,55.77948]
[1673318810165,0.53521072,1320.9,1320.8,57.58392864]
[1673318810380,0.53521072,1320.9,1320.8,50.01276864]
[1673318810648,0.53521072,1320.9,1320.8,57.58392864]
[1673318812113,46.93320905,1321.2,1320.9,2.46478928]
[1673318812904,48.61886263,1321.2,1320.9,2.46478928]
[1673318813263,39.36392905,1321.2,1320.9,10.03537928]
[1673318813489,46.93320905,1321.2,1320.9,5.99269407]
[1673318813634,39.36392905,1321.2,1320.9,5.99269407]
[1673318814002,48.62767838,1321.2,1320.9,5.99269407]
[1673318814217,48.62767838,1321.2,1320.9,2.53078928]
[1673318814386,5.30942263,1321.1,1320.9,2.46478928]
[1673318814598,24.08806,1321.0,1320.9,2.46478928]
[1673318814949,19.40238838,1321.0,1320.9,2.46478928]
[1673318815105,18.27861933,1321.0,1320.9,2.46478928]
[1673318815577,19.40416945,1321.0,1320.9,2.46478928]
[1673318816260,11.83414945,1321.0,1320.9,2.46478928]
[1673318816475,19.40416945,1321.0,1320.9,2.46478928]
[1673318816720,2.57847587,1321.0,1320.9,2.46478928]
[1673318817063,4.19812945,1321.0,1320.9,2.46478928]
[1673318817238,4.1892037,1321.0,1320.9,2.46478928]
[1673318818991,3.06365358,1321.0,1320.9,2.46478928]
[1673318819325,18.20369358,1321.0,1320.9,2.46478928]
[1673318819517,18.26969358,1321.0,1320.9,2.46478928]
[1673318820358,1.75165358,1321.0,1320.9,2.46478928]
[1673318820563,9.25567358,1321.0,1320.9,2.46478928]
[1673318820775,2.8789663,1321.0,1320.9,2.46478928]
[1673318821039,1.12731272,1321.0,1320.9,17.85244821]
[1673318821264,1.12731272,1321.0,1320.9,10.34785821]
[1673318821767,1.12731272,1321.0,1320.9,2.77726821]
[1673318821980,1.12731272,1321.0,1320.9,2.71126821]
[1673318824059,1.12731272,1321.0,1320.9,10.28185821]
[1673318824272,1.12731272,1321.0,1320.9,10.34785821]
[1673318824889,1.12731272,1321.0,1320.9,2.77726821]
[1673318825121,1.12731272,1321.0,1320.9,2.71126821]
[1673318825673,1.12731272,1321.0,1320.9,10.28185821]
[1673318825816,1.12731272,1321.0,1320.9,10.34785821]
[1673318826180,1.12731272,1321.0,1320.9,2.77726821]
[1673318826392,1.12731272,1321.0,1320.9,10.28185821]
[1673318826555,1.12731272,1321.0,1320.9,25.48903821]
[1673318827658,1.12731272,1321.0,1320.9,17.91844821]
[1673318827821,1.12731272,1321.0,1320.9,10.34785821]
[1673318828273,1.12731272,1321.0,1320.9,2.77726821]
[1673318828487,2.8129663,1321.0,1320.9,2.46478928]
[1673318828658,10.3829863,1321.0,1320.9,2.46478928]
[1673318828889,25.5890263,1321.0,1320.9,2.46478928]
[1673318829096,24.46171358,1321.0,1320.9,2.46478928]